Cogmind - Beta 15 @@@ ROGUE MODE // 2025.09.04 @ 23:51:28 Player: kiiro Result: Destroyed by CT-LU7(R) with Subdweller Beam Cannon Performance ------------- Evolutions (0) 0 Regions Visited (2) 400 Robots Destroyed (19) 95 Value Destroyed (583) 583 Prototype IDs (0) 0 Alien Tech Used (0) 0 Bonus (-25) -25 TOTAL SCORE: 1053 Bonus ------- Friendly Fire -25 Cogmind --------- Core Integrity 0/250 Matter 233/300 Energy 100/100 System Corruption 0% Temperature Cool (9) Movement Rolling (110) Location -10/Subcaves Parts ------- > --- POWER (1) -------- (None) > --- PROPULSION (2) --- Subdweller Monowheel > --- UTILITY (2) ------ Small Storage Unit Targeting Computer > --- WEAPON (2) ------- Light Assault Rifle > --- INVENTORY (8) ---- Light Ion Engine Subdweller Optics Targeting Computer Scrap Shield Subdweller Machine Gun Peak State ------------ > --- POWER ------------ Neutrino Core > --- PROPULSION ------- Compact Wheel Compact Wheel > --- UTILITY ---------- Small Storage Unit Targeting Computer > --- WEAPON ----------- Light Cannon Grenade Launcher > --- INVENTORY -------- Ion Engine Light Ion Engine Compact Wheel Targeting Computer Targeting Computer Scrap Shield Light Assault Rifle [Rating: 13] Favorites ----------- Power Ion Engine Engine Ion Engine Power Core Neutrino Core Propulsion Compact Wheel Wheel Compact Wheel Utility Small Storage Unit Storage Small Storage Unit Processor Targeting Computer Weapon Light Cannon Ballistic Gun Light Assault Rifle Ballistic Cannon Light Cannon Launcher Grenade Launcher Build | -11 -10 -10 ------- Run | Yrd Mat Sub Slots Evolved . | . . . Power . | . . . Propulsion . | . . . Utility . | . . . Weapon . | . . . Parts Attached 16 | 5 5 6 Power 2 | 1 . 1 Engine 1 | 1 . . Core 1 | . . 1 Reactor . | . . . Propulsion 6 | 1 2 3 Treads . | . . . Leg . | . . . Wheel 6 | 1 2 3 Hover . | . . . Flight . | . . . Utility 3 | 1 2 . Device . | . . . Storage 2 | 1 1 . Processor 1 | . 1 . Hackware . | . . . Protection . | . . . Artifact . | . . . Weapon 5 | 2 1 2 Energy Gun . | . . . Energy Cannon . | . . . Ballistic Gun 3 | 2 . 1 Ballistic Cannon 1 | . 1 . Launcher 1 | . . 1 Special Weapon . | . . . Impact Weapon . | . . . Slashing Weapon . | . . . Piercing Weapon . | . . . Special Melee Weapon . | . . . Unidentified Prototypes . | . . . Parts Lost 7 | . . 7 Power 1 | . . 1 Propulsion 4 | . . 4 Utility . | . . . Weapon 2 | . . 2 Highest Loss Streak 3 | . . 3 To Critical Strikes . | . . . Average Backups 4 | 1 3 5 Power . | . 1 1 Propulsion . | . 1 . Utility 1 | . . 2 Weapon 1 | . 1 1 Tool/Special . | . . . Unused Backups 6 | . . 6 Power 2 | . . 2 Propulsion . | . . . Utility 4 | . . 4 Weapon . | . . . Tool/Special . | . . . Average Slot Usage (%) 93 | . 86 97 Engine 9 | . 14 7 Core 4 | . . 6 Wheel 26 | . 27 26 Storage 14 | . 14 14 Processor 9 | . 2 14 Ballistic Gun 10 | . 17 7 Ballistic Cannon 8 | . 10 7 Launcher 7 | . . 12 Peak Build Rating 13 | 5 7 13 Average Rating 8 | 3 6 10 On Entrance 4 | . 5 7 Naked Turns . | . . . Heaviest Build 25 | 12 14 25 Greatest Support 40 | 16 32 40 Greatest Overweight (x) 1 | . . 1 Average Overweight (x) . | . . . Largest Inventory Capacity 20 | 8 20 8 Average Capacity 7 | 7 8 8 Most Carried 8 | 2 5 8 Average Carried 5 | 1 3 6 Final Capacity 8 | 8 8 8 Final Carried 6 | 2 5 6 Class Distribution -------------------- 100% | Mutant Dominant Class ---------------- Mutant | -10/Materials Mutant | -10/Subcaves Resources | -11 -10 -10 ----------- Run | Yrd Mat Sub Matter Collected 708 | 232 83 393 Remotely . | . . . Salvage Created 449 | . 53 396 Parts 27 | . 4 23 Haulers Intercepted . | . . . Recyclers Shooed . | . . . Parts Field Recycled . | . . . Retrieved Matter . | . . . Parts Self-Destructed 17 | . . 17 Prevented . | . . . Kills | -11 -10 -10 ------- Run | Yrd Mat Sub Combat Hostiles Destroyed 17 | . 2 15 Guns 3 | . 1 2 Cannons 6 | . 1 5 AOE 8 | . . 8 Classes Destroyed 5 | . 1 4 Turret 2 | . . 2 Swarmer 5 | . . 5 Grunt 2 | . 2 . Sentry 1 | . . 1 Subdweller 9 | . . 9 Best Kill Streak 5 | . 2 5 Combat Bots Only 5 | . 2 5 Max Kills in Single Turn 2 | . 1 2 Gunslinging . | . . . Exploded 2 | . . 2 Melee . | . . . Uniques/NPCs Destroyed . | . . . Combat | -11 -10 -10 -------- Run | Yrd Mat Sub Hostile Shots Fired 115 | . 10 105 Missed 44 | . 4 40 Hits 71 | . 6 65 Projectile 71 | . 6 65 Damage Taken 888 | . 67 821 Core 264 | . 23 241 Absorbed by Shields . | . . . Core Remaining (%) 100 | 100 . . Volleys Fired 50 | . 7 43 Largest 2 | . 2 2 Hottest 60 | . 50 60 Shots Fired 79 | . 14 65 Gun 23 | . 7 16 Cannon 27 | . 7 20 Launcher 29 | . . 29 Special . | . . . Kinetic 50 | . 14 36 Thermal . | . . . Explosive 29 | . . 29 Electromagnetic . | . . . Robot Hit Streak 9 | . 2 9 Robot Miss Streak 2 | . 1 2 Penetration Max . | . . . Secondary Targets . | . . . Shots Hit Robots 50 | . 9 41 Core Hits 37 | . 4 33 Critical Kills . | . . . Critical Parts Destroyed . | . . . Critical Strikes 4 | . . 4 Blast 4 | . . 4 Melee Attacks . | . . . Impact . | . . . Slashing . | . . . Piercing . | . . . Sneak Attacks . | . . . Combat Hostiles . | . . . Follow-up Attacks . | . . . Damage Inflicted 1522 | . 114 1408 Guns 150 | . 45 105 Cannons 330 | . 69 261 Explosions 1042 | . . 1042 Melee . | . . . Ramming . | . . . Kinetic 480 | . 114 366 Thermal . | . . . Explosive 1042 | . . 1042 Electromagnetic . | . . . Impact . | . . . Slashing . | . . . Piercing . | . . . Highest Corruption . | . . . Average Corruption . | . . . Corruption Purged . | . . . Corruption Blocked . | . . . Overload Shots . | . . . Overflow Damage 7 | . . 7 Projectiles . | . . . Explosions 7 | . . 7 Melee . | . . . Knockbacks 2 | . . 2 Impact . | . . . Kinetic 2 | . . 2 Secondary . | . . . Self-Inflicted Damage 34 | . . 34 Shots 3 | . . 3 Rammed . | . . . Targets Rammed . | . . . Kicked . | . . . Crushed . | . . . Highest Temperature 32 | . 32 8 Average Temperature 14 | . 17 3 Received Heat Transfer 375 | . 36 339 Siege Activations . | . . . Martial Activations . | . . . Shielding Activations . | . . . Robots Disrupted . | . . . Combat Hostiles . | . . . Robots Corrupted . | . . . Combat Hostiles . | . . . Parts Fried . | . . . Impact Corruptions . | . . . Robots Melted . | . . . Combat Hostiles . | . . . Parts Melted 1 | . . 1 Heat Transferred . | . . . Parts Sabotaged . | . . . Parts Stolen . | . . . Parts Stripped . | . . . Power Chain Reactions . | . . . Alert | -11 -10 -10 ------- Run | Yrd Mat Sub Maximum Alert Level . | . . . Low Security (%) 100 | 100 100 . Level 1 . | . . . Level 2 . | . . . Level 3 . | . . . Level 4 . | . . . Level 5 . | . . . High Security . | . . . Max Security . | . . . Peak Influence 40 | . 40 . Initial . | . . . Average 4 | . 4 . Influence Increases 304 | . 74 230 Destroy 0b10 Robot/C 200 | . 40 160 Destroy Leader 20 | . 10 10 Successful Hack 24 | . 24 . Lose Combat Pursuer 60 | . . 60 Influence Decreases 274 | . 74 200 Time Decay 214 | . 74 140 Lost Part 60 | . . 60 Squads Dispatched 1 | . 1 . Investigation . | . . . Extermination . | . . . Reinforcement 1 | . 1 . Assault . | . . . Garrison . | . . . Intercept . | . . . Searches Triggered . | . . . Construction Impeded . | . . . Haulers Reinforced . | . . . Active Scanning Responses . | . . . Cargo Convoy Interrupts . | . . . Stealth | -11 -10 -10 --------- Run | Yrd Mat Sub Distress Signals . | . . . Communications Jammed . | . . . Distress Signals . | . . . Times Spotted 37 | . 6 31 Peak Tracking Total 6 | . 2 6 Tactical Retreats 1 | . . 1 Traps | -11 -10 -10 ------- Run | Yrd Mat Sub Traps Triggered . | . . . Indirectly . | . . . Trap Hack Attempts . | . . . Triggered . | . . . Disarmed . | . . . Reprogrammed . | . . . Reused . | . . . Traps Extracted . | . . . Installed . | . . . Triggered . | . . . Machines | -11 -10 -10 ---------- Run | Yrd Mat Sub Machines Disabled 4 | . . 4 Max in Single Turn 1 | . . 1 Machines Repaired . | . . . Machines Dismantled . | . . . Machines Sabotaged . | . . . Overloaded Fab Kills . | . . . Hacking | -11 -10 -10 --------- Run | Yrd Mat Sub Machines Accessed 3 | . 3 . Terminals 3 | . 3 . Fabricators . | . . . Repair Stations . | . . . Recycling Units . | . . . Scanalyzers . | . . . Garrison Access . | . . . Total Hacks 9 | . 9 . Successful 3 | . 3 . Failed 6 | . 6 . Catastrophic 1 | . 1 . Database Lockouts . | . . . Manual . | . . . Terminals 9 | . 9 . Fabricators . | . . . Repair Stations . | . . . Recycling Units . | . . . Scanalyzers . | . . . Garrison Access . | . . . Terminal Hacks 3 | . 3 . Level Access Points 1 | . 1 . Locate Traps 1 | . 1 . Registered Components 1 | . 1 . Fabricator Hacks . | . . . Repair Station Hacks . | . . . Recycling Unit Hacks . | . . . Scanalyzer . | . . . Garrison Access Hacks . | . . . Unauthorized Hacks . | . . . Terminals . | . . . Fabricators . | . . . Repair Stations . | . . . Recycling Units . | . . . Scanalyzers . | . . . Garrison Access . | . . . Data Cores Recovered . | . . . Used . | . . . Hacking Detections 3 | . 3 . Full Trace Events . | . . . Feedback Events . | . . . Feedback Blocked . | . . . Robot Schematics Acquired . | . . . Robots Built . | . . . Authchips . | . . . Time . | . . . Total Robot Build Rating . | . . . Part Schematics Acquired . | . . . Parts Built . | . . . Authchips . | . . . Time . | . . . Total Part Build Rating . | . . . Parts Repaired . | . . . Time . | . . . Parts Recycled . | . . . Recycled Matter . | . . . Retrieved Matter . | . . . Retrieved Components . | . . . Parts Scanalyzed . | . . . Part Schematics Acquired . | . . . Parts Damaged . | . . . Bothacking | -11 -10 -10 ------------ Run | Yrd Mat Sub Used RIF Installer . | . . . Robots Hacked . | . . . Non-combat . | . . . Combat . | . . . Robot Hacks Applied . | . . . Relay Couplers Released . | . . . Fabnet Peak Effective % . | . . . Robots Rewired . | . . . Allies Hacked . | . . . Hacks Repelled . | . . . Allies | -11 -10 -10 -------- Run | Yrd Mat Sub Total Allies . | . . . Largest Group . | . . . Highest-Rated Group . | . . . Highest-Rated Ally . | . . . Total Orders . | . . . Ally Attacks . | . . . Total Damage . | . . . Kills . | . . . Allies Corrupted . | . . . Allies Melted . | . . . Intel | -11 -10 -10 ------- Run | Yrd Mat Sub Active Infowar (turns) . | . . . Robot Analysis Total . | . . . Derelict Logs Recovered . | . . . Drone Launches . | . . . Drone Recoveries . | . . . Exploration | -11 -10 -10 ------------- Run | Yrd Mat Sub Turns Passed 1325 | 63 469 793 Spaces Moved 1013 | 59 321 633 Core 9 | 9 . . Treads . | . . . Legs . | . . . Wheels 1004 | 50 321 633 Hover . | . . . Flight . | . . . Fastest Speed 50 | 50 100 100 Average Speed 101 | 92 100 102 Slowest Speed 115 | 100 100 115 Overloaded Moves . | . . . Propulsion Burnouts . | . . . Robots Hopped . | . . . Potential Cave-ins . | . . . Cave-ins Triggered . | . . . Exploration Rate (%) 32 | 4 43 49 Regions Visited 2 Branch Regions 1 Pre-discovered Areas . | . . . Known Exits Taken . | . . . Unknown Exits Taken 2 | 1 1 . Scrap Searched . | . . . Spaces Dug 11 | . . 11 Terrain Destroyed 102 | . . 102 Melee . | . . . Projectile . | . . . AOE 102 | . . 102 Terrain Rammed . | . . . Walls Destroyed . | . . . Machines Disabled . | . . . Actions | -11 -10 -10 --------- Run | Yrd Mat Sub Total 1235 | 65 456 714 Wait 136 | . 116 20 Move 1011 | 58 320 633 Hop . | . . . Pick Up 9 | 2 3 4 Fast Attach 11 | 5 4 2 Attach 5 | . . 5 Detach 5 | . 2 3 Swap 2 | . 1 1 Drop 6 | . 3 3 Fire 50 | . 7 43 Melee . | . . . Ram . | . . . Kick . | . . . Crush . | . . . Escape Stasis . | . . . Rewire . | . . . Trap . | . . . Miscellaneous . | . . . Route ------- -11/Scrapyard -10/Materials (discovered 4 exits: *Mat x3 / [*Sub]) -10/Subcaves (discovered 2 exits: [*Rec] / [*Scr]) History --------- Turn | Location | Event 30 | -11/Scrapyard | Discovered new exit (range 15) 64 | -11/Scrapyard | Entered Materials 302 | -10/Materials | Build established: Mutant 424 | -10/Materials | Discovered new exit (range 7) 489 | -10/Materials | Discovered new exit (range 16) 509 | -10/Materials | Identified exit to Materials 533 | -10/Materials | Entered Subcaves 534 | -10/Subcaves | Approached by a straggling Scientist 593 | -10/Subcaves | Ambushed by swarm of Subdwellers 976 | -10/Subcaves | Discovered new exit (range 12) 981 | -10/Subcaves | Core integrity fell below 50% 1035 | -10/Subcaves | A swath of the cavern ceiling suddenly collapsed 1128 | -10/Subcaves | Ambushed by Subdweller buried in earth 1142 | -10/Subcaves | Core integrity fell below 20% 1163 | -10/Subcaves | Scientist uncovered a shortcut to Scraptown 1213 | -10/Subcaves | A swath of the cavern ceiling suddenly collapsed 1326 | -10/Subcaves | Destroyed by CT-LU7(R) with Subdweller Beam Cannon Last Messages --------------- 01233_ Com. Wheel destroyed. 01233_ Y-45 Defender destroyed. 01240_ Beam Rifle fries itself beyond repair. 01242_ S-10 Pest destroyed. 01245_ Hvy. Assault Rifle fries itself beyond repair. 01248_ Sub. Machine Gun shoots sparks and powers down. 01249_ Lgt. Treads fries itself beyond repair. 01250_ Lgt. Ion Engine fries itself beyond repair. 01251_ S-10 Pest destroyed. 01253_ Acquired 32 matter. 01258_ The unstable cave ceiling collapses. 01282_ 6G-A71(R) destroyed. 01282_ ST-BHS(R) destroyed. 01289_ Acquired 49 matter. 01292_ Acquired Sub. Monowheel. 01295_ The unstable cave ceiling collapses. 01321_ Grenade Launcher destroyed. 01321_ Destroyed Grenade Launcher. 01322_ Sub. Monowheel destroyed. 01326_ Ion Engine destroyed. Map ----- +----------------------------------------------------+ | | | | | | | | | | | ?????????????????????????????????????????????????? | | ?????????????????????????????????????????????????? | | ?????????????????????????????????????????????????? | | ?????????????????????????????????????????????????? | | ?????????????????????????????????????????????????? | | ?????????????????????????????????????????????????? | | ?????????????????????????????????????????????????? | | ?????????????????????????????????????????????????? | | ?????????????????????????????????????????????????? | | ?????????????????????????????????????????????????? | | ?????????????????????????????????????????????????? | | ?????????????????????????????????????????????????? | | ?????????????????????????????????????????????????? | | ?????????????????????????????????????????????????? | | ?????????????????????????????????????????????????? | | ??????????????????????????????????????????####??## | | ???????????????????##?##??????????###????## ### | | ???????????????????# # ?????????## ##???# | | ???????????????###"# " ???????## #???# " | | ?????????????? " " ######## #??##" "#?"" | | ?????????????? " " R @ #### "###""" | | ?????????????????#"# R # ""## " " | | ???????????????? "" # != " | | ???????????????""# ### ## ! " | | ?????????????????### ??# ######## &* %"""" | | ???????????????????#???#####??????## ##! " | | ???????????????????????????????????## #### "" | | ????????????????????????????????????## ##?# "" | | ?????????????????????????????????????# ### "" | | ?????????????????????????????????????# ## " | | ?????????????????????????????????????# | | ?????????????????????????????????????## | | ??????????????????????????????????????# | | ??????????????????????????????????????# | | ??????????????????????????????????????## | | ???????????????????????????????????????### #### | | ?????????????????????????????????????????###?# | | ????????????????????????????????????????????## | | ????????????????????????????????????????????# ## | | ????????????????????????????????????????????# ## | | ????????????????????????????????????????????# # | | ????????????????????????????????????? ????## # | | ???????????????????????????????????? ????# | | ???????????????????????????????????? ?##### | | ???????????????????????????????????? ?# ## | +----------------------------------------------------+ Best States ------------- Heat Dissipation 25 Energy Generation 19 Energy Capacity 315 Matter Stores 300 Matter Capacity 300 Sight Range 16 Terrain Scan Density 10 Evasion (%) 40 Targeting Accuracy 5 Item Schematics ----------------- None Robot Schematics ------------------ None Fabricated ------------ Nothing Repaired ---------- Nothing Alien Tech Used ----------------- None Achievements -------------- None Challenges ------------ None Game ------ Seed PhaseDirtyMatter Manual? 0 Play Time 00:37:14 Cumulative 11.9 hours Start 2025.09.04 @ 23:14:26 End 2025.09.04 @ 23:51:28 Sessions 1 Manual Loads 0 Difficulty Rogue Special Mode None Game No. 9 Rogue 9 Adventurer 0 Explorer 0 Win Type - Total 0 Types 0/0/0/0/0/0/0/0/0/0 Lore% 3 Gallery% 11 Achievement% 11 Wizard Run 0 Options --------- Layout 0 ASCII 1 Keyboard 1 Movement Vi Keybinds 0 Fullscreen 2 Font 20/All Caps Map View 66x50 Zoom Use 4% Tactical HUD 1 Map Filters NONE Filters NONE Steam 1 RUN: aa068d5d-d27b-4bfd-b8ce-d0e3784fed42